fUSD/lending_fUSD_20250602
["ID","MTS","AMOUNT","RATE_DAILY","PERIOD"]
[363791296,1748873432534,-420.0,0.00019178,2]
[363791297,1748873432544,-500.0,0.00019178,2]
[363791298,1748873432554,-431.23,0.00019178,2]
[363791299,1748873432564,-434.74,0.00019178,2]
[363791300,1748873432575,-699.16,0.00019178,2]
[363791301,1748873432588,-615.98,0.00019178,2]
[363791302,1748873432598,-420.0,0.00019178,2]
[363791303,1748873432609,-420.0,0.00019178,2]
[363791304,1748873432619,-449.11615066,0.00019178,2]
[363791305,1748873432630,-250.0,0.00019187,2]
[363791306,1748873432640,-400.0,0.00019187,2]
[363791307,1748873432651,-500.0,0.00019197,2]
[363791308,1748873432661,-1200.0,0.00019214,2]
[363791309,1748873432672,-300.0,0.00019214,2]
[363791310,1748873432682,-500.0,0.00019215,2]
[363791311,1748873432692,-937.62090387,0.00019215,2]
[363792051,1748873440902,-819.18628661,0.00019215,2]
[363792054,1748873440922,-72.42180952,0.00019215,2]
[363792056,1748873440931,-968.27819048,0.00019215,2]
[363792148,1748873441861,-31.72180952,0.00019215,2]
[363792151,1748873441872,-250.0,0.00019224,2]
[363792153,1748873441882,-400.0,0.00019224,2]
[363792155,1748873441892,-420.0,0.00019315,2]
[363792156,1748873441902,-473.37,0.00019315,2]
[363792157,1748873441913,-420.0,0.00019315,2]
[363792158,1748873441924,-420.0,0.00019315,2]
[363792159,1748873441934,-309.64469048,0.00019315,2]
[363792160,1748873441947,-272.53530952,0.00019315,2]
[363792161,1748873441957,-2272.16512203,0.00019315,2]
[363792162,1748873442012,150.0,0.00023,30]
[363792167,1748873442071,-2294.85487797,0.00019315,2]
[363792169,1748873442082,-1463.4,0.00019315,2]
[363792171,1748873442093,-462.99,0.00019315,2]
[363792173,1748873442103,-420.0,0.00019315,2]
[363792175,1748873442113,-420.0,0.00019315,2]
[363792177,1748873442122,-420.0,0.00019315,2]
[363792179,1748873442132,-420.0,0.00019315,2]
[363792181,1748873442142,-420.0,0.00019315,2]
[363792183,1748873442152,-431.23,0.00019315,2]
[363792185,1748873442162,-699.16,0.00019315,2]
[363792187,1748873442171,-434.74,0.00019315,2]
[363792189,1748873442181,-420.0,0.00019315,2]
[363792191,1748873442192,-615.98,0.00019315,2]
[363792193,1748873442202,-420.0,0.00019315,2]
[363792195,1748873442212,-500.0,0.0001935,2]
[363792197,1748873442222,-420.0,0.00019452,2]
[363792199,1748873442232,-472.91449046,0.00019452,2]
[363792201,1748873442246,-0.45550954,0.00019452,2]
[363792203,1748873442257,-420.0,0.00019452,2]
[363792205,1748873442267,-582.18,0.00019452,2]
[363792208,1748873442278,-4567.02,0.00019452,2]
[363792210,1748873442288,-1463.4,0.00019452,2]
[363792211,1748873442298,-462.99,0.00019452,2]
[363792213,1748873442308,-420.0,0.00019452,2]
[363792215,1748873442318,-420.0,0.00019452,2]
[363792217,1748873442328,-420.0,0.00019452,2]
[363792219,1748873442338,-420.0,0.00019452,2]
[363792221,1748873442348,-223.42208382,0.00019452,2]
[363792224,1748873442358,-431.23,0.00019452,2]
[363792226,1748873442368,-564.30240664,0.00019452,2]
[363792228,1748873442381,-134.85759336,0.00019452,2]
[363792230,1748873442391,-434.74,0.00019452,2]
[363792232,1748873442400,-420.0,0.00019452,2]
[363792234,1748873442411,-615.98,0.00019452,2]
[363792236,1748873442420,-420.0,0.00019452,2]
[363792238,1748873442430,-420.0,0.00019589,2]
[363792240,1748873442440,-473.37,0.00019589,2]
[363792242,1748873442450,-420.0,0.00019589,2]
[363792244,1748873442460,-582.18,0.00019589,2]
[363792246,1748873442470,-4567.02,0.00019589,2]
[363792248,1748873442480,-1463.4,0.00019589,2]
[363792250,1748873442492,-462.99,0.00019589,2]
[363792252,1748873442502,-420.0,0.00019589,2]
[363792254,1748873442512,-420.0,0.00019589,2]
[363792256,1748873442522,-420.0,0.00019589,2]
[363792258,1748873442532,-420.0,0.00019589,2]
[363792260,1748873442543,-431.23,0.00019589,2]
[363792262,1748873442554,-699.16,0.00019589,2]
[363792264,1748873442563,-434.74,0.00019589,2]
[363792266,1748873442573,-420.0,0.00019589,2]
[363792268,1748873442584,-615.98,0.00019589,2]
[363792270,1748873442598,-420.0,0.00019589,2]
[363792272,1748873442607,-420.0,0.00019726,2]
[363792274,1748873442617,-473.37,0.00019726,2]
[363792276,1748873442626,-420.0,0.00019726,2]
[363792278,1748873442637,-582.18,0.00019726,2]
[363792281,1748873442648,-4567.02,0.00019726,2]
[363792283,1748873442658,-1463.4,0.00019726,2]
[363792285,1748873442668,-462.99,0.00019726,2]
[363792287,1748873442678,-420.0,0.00019726,2]
[363792289,1748873442688,-420.0,0.00019726,2]
[363792291,1748873442698,-420.0,0.00019726,2]
[363792293,1748873442708,-420.0,0.00019726,2]
[363792295,1748873442718,-431.23,0.00019726,2]
[363792297,1748873442728,-699.16,0.00019726,2]
[363792299,1748873442740,-434.74,0.00019726,2]
[363792301,1748873442752,-420.0,0.00019726,2]
[363792303,1748873442763,-615.98,0.00019726,2]
[363792305,1748873442774,-420.0,0.00019726,2]
[363792307,1748873442786,-420.0,0.00019863,2]
[363792309,1748873442797,-473.37,0.00019863,2]
[363792311,1748873442807,-420.0,0.00019863,2]
[363792313,1748873442817,-543.43753375,0.00019863,2]
[363792315,1748873442829,-38.74246625,0.00019863,2]
[363792317,1748873442838,-2479.62923372,0.00019863,2]
[363792321,1748873442857,-408.06891544,0.00019863,2]
[363792323,1748873442870,-520.15,0.00019863,2]
[363792325,1748873442882,-1159.17185084,0.00019863,2]
[363792327,1748873442893,-1463.4,0.00019863,2]
[363792329,1748873442903,-462.99,0.00019863,2]
[363792331,1748873442914,-420.0,0.00019863,2]
[363792333,1748873442924,-420.0,0.00019863,2]
[363792335,1748873442934,-420.0,0.00019863,2]
[363792337,1748873442943,-420.0,0.00019863,2]
[363792339,1748873442952,-431.23,0.00019863,2]
[363792341,1748873442964,-699.16,0.00019863,2]
[363792344,1748873442974,-434.74,0.00019863,2]
[363792346,1748873442984,-420.0,0.00019863,2]
[363792348,1748873443000,-615.98,0.00019863,2]
[363792351,1748873443011,-233.74138214,0.00019863,2]
[363792353,1748873443022,-500.0,0.00019973,2]
[363792377,1748873443220,-500.0,0.00019973,2]
[363792380,1748873443243,-500.0,0.00019973,2]
[363792382,1748873443253,-500.0,0.00019973,2]
[363792384,1748873443263,-501.89823162,0.00019973,2]
[363792387,1748873443273,-3555.82223099,0.00019973,2]
[363792389,1748873443283,-5800.0,0.00019975,2]
[363792391,1748873443293,-350.0,0.0001998,2]
[363792393,1748873443302,-5800.0,0.00019983,2]
[363792395,1748873443312,-676.75264204,0.00019992,2]
[363792397,1748873443324,-4167.3327161,0.00019992,2]
[363792400,1748873443335,-955.91464186,0.00019992,2]
[363792402,1748873443345,-1000.0,0.00019994,2]
[363792404,1748873443354,-10787.6817803,0.00019996,2]
[363792406,1748873443370,-3702.35357797,0.00019996,2]
[363792409,1748873443387,-4017.69716926,0.00019996,2]
[363792411,1748873443400,-381.04886005,0.00019996,2]
[363792413,1748873443413,-2706.08207203,0.00019996,2]
[363792433,1748873443597,-253.1,0.00019178,2]
[363792436,1748873443610,-314.83157489,0.00019178,2]
[363792438,1748873443620,-300.0,0.00019314,2]
[363792440,1748873443630,-2047.33097331,0.00019996,2]
[363792443,1748873443646,-66023.52369088,0.00019996,2]
[363792445,1748873443657,-2479.9607211,0.00019996,2]
[363792447,1748873443668,-305.322,0.00019999,2]
[363792449,1748873443679,-150.0,0.00019999,2]
[363792451,1748873443690,-1154.0,0.0002,2]
[363792454,1748873443700,-127239.71714396,0.0002,2]
[363792456,1748873443710,-3950.0,0.0002,2]
[363792458,1748873443721,-1256.50222913,0.0002,2]
[363792460,1748873443730,-11888.4969659,0.0002,2]
[363792462,1748873443743,-1013.84143336,0.0002,2]
[363792464,1748873443753,-2777.69952826,0.0002,2]
[363792466,1748873443763,-1000.0,0.0002,2]
[363792468,1748873443772,-4284.62094141,0.0002,2]
[363792470,1748873443782,-90244.00567207,0.0002,2]
[363792473,1748873443792,-1000.0,0.0002,2]
[363792475,1748873443802,-101852.30967401,0.0002,2]
[363792478,1748873443823,-420.83167821,0.0002,2]
[363792758,1748873446595,-626.31,0.00019178,2]
[363792760,1748873446605,-407.63520001,0.00019178,2]
[363792784,1748873446826,-152.50479999,0.00019178,2]
[363792786,1748873446836,-626.31,0.00019315,2]
[363792788,1748873446847,-396.76834395,0.00019315,2]
[363795001,1748873471342,203.0,0.00018202,2]
[363795258,1748873474364,500.0,0.00023,30]
[363795409,1748873482471,500.0,0.00023,30]
[363795410,1748873483841,153.20492074,0.00023,30]
[363795411,1748873484960,150.0,0.00023,30]
[363795412,1748873486674,154.19890155,0.00023,30]
[363795413,1748873488647,150.0,0.00023,30]
[363795414,1748873501497,150.0,0.00023,30]
[363795415,1748873586143,500.0,0.00023,30]
[363795416,1748873598051,500.0,0.00023,30]
[363795417,1748873602205,200.24,0.00013699,2]
[363795419,1748873610463,150.0,0.00018422,2]
[363795420,1748873610701,150.0,0.00018383,2]
[363795421,1748873647037,150.0,0.00023,30]
[363795422,1748873648695,150.67676114,0.00023,30]
[363795423,1748873651205,150.0,0.00023,30]
[363795424,1748873652427,201.91637906,0.00023,30]
[363795425,1748873653852,215.87666332,0.00023,30]
[363795426,1748873654749,500.0,0.00023,30]
[363795427,1748873708824,150.0,0.00023,30]
[363795428,1748873715402,1146.0,0.00023,30]
[363795429,1748873733715,2751.0,0.00018884,2]
[363795430,1748873766822,334.21,0.00018915,2]
[363795431,1748873771421,500.0,0.00023,30]
[363795432,1748873785380,500.0,0.00023,30]
[363795435,1748873848057,200.0,0.00018915,2]
[363795436,1748873859312,150.0,0.00018888,7]
[363795441,1748873979059,11260.6,0.00018847,2]
[363795442,1748874004540,500.0,0.00023,30]
[363795443,1748874018091,150.0,0.00023,30]
[363795445,1748874076446,1098.0,0.00023,30]
[363795446,1748874129039,500.0,0.00023,30]
[363795447,1748874136917,500.0,0.00023,30]
[363795448,1748874138880,150.0,0.00023,30]
[363795449,1748874151719,150.0,0.00023,30]
[363795451,1748874172271,170.15,0.00018873,2]
[363795452,1748874185130,500.0,0.00023,30]
[363795453,1748874197160,150.0,0.00023,30]
[363795456,1748874321308,3631.21,0.00018432,2]
[363795457,1748874348040,167.44,0.00018439,2]
[363795458,1748874374414,531.88,0.00016863,2]
[363795459,1748874382892,1105.0,0.00023,30]
[363795462,1748874391100,500.0,0.00023,30]
[363795463,1748874398322,518.09,0.0001837,2]
[363795464,1748874399416,150.0,0.00023,30]
[363795471,1748874505133,1000.0,0.0001836,2]
[363795474,1748874526019,247.8364924,0.00018973,2]
[363795481,1748874551807,150.0,0.00023,30]
[363795482,1748874556955,500.0,0.00023,30]
[363795483,1748874561459,150.0,0.00023,30]
[363795487,1748874579112,171.53660825,0.00023,30]
[363795489,1748874600306,202.16,0.00018342,2]
[363795490,1748874611992,202.0,0.00018002,2]
[363795500,1748874631505,-150.0,0.00019006,2]
[363795501,1748874631516,-250.0,0.00019016,2]
[363795502,1748874631526,-247.8364924,0.00019026,2]
[363795503,1748874631537,-400.0,0.00019034,2]
[363795504,1748874631547,-250.0,0.00019038,2]
[363795505,1748874631558,-400.0,0.00019056,2]
[363795506,1748874631568,-173.52,0.0001907,2]
[363795507,1748874631578,-247.8364924,0.00019078,2]
[363795508,1748874631588,-171.90712815,0.00019078,2]
[363795509,1748874631598,-531.88,0.00019127,2]
[363795510,1748874631609,-1200.0,0.00019165,2]
[363795511,1748874631618,-151.0,0.00019166,2]
[363795512,1748874631628,-151.0,0.00019166,2]
[363795513,1748874631639,-1957.856,0.00019166,2]
[363795514,1748874631648,-300.0,0.00019166,2]
[363795515,1748874631658,-300.0,0.00019166,2]
[363795516,1748874631668,-300.0,0.00019166,2]
[363795517,1748874631678,-668.65185757,0.00019166,2]
[363795518,1748874631688,-9.82058948,0.00019166,2]
[363795519,1748874631701,-290.17941052,0.00019166,2]
[363795520,1748874631711,-300.0,0.00019166,2]
[363795521,1748874631722,-300.0,0.00019166,2]
[363795522,1748874631731,-74.10134952,0.00019166,2]
[363795523,1748874631743,-260.42452717,0.00019166,2]
[363795524,1748874631755,-780.63177631,0.00019166,2]
[363795525,1748874631765,-300.0,0.00019166,2]
[363795526,1748874631775,-300.0,0.00019166,2]
[363795527,1748874631785,-300.0,0.00019166,2]
[363795528,1748874631794,-300.0,0.00019166,2]
[363795529,1748874631804,-300.0,0.00019166,2]
[363795530,1748874631813,-300.0,0.00019166,2]
[363795531,1748874631823,-300.0,0.00019166,2]
[363795532,1748874631833,-300.0,0.00019166,2]
[363795533,1748874631842,-300.0,0.00019166,2]
[363795534,1748874631853,-300.0,0.00019166,2]
[363795536,1748874631863,-207.4,0.00019166,2]
[363795538,1748874631873,-151.0,0.00019166,2]
[363795540,1748874631883,-500.0,0.00019177,2]
[363795541,1748874631897,-420.0,0.00019178,2]
[363795542,1748874631907,-420.0,0.00019178,2]
[363795543,1748874631918,-415.91469066,0.00019178,2]
[363795544,1748874631928,-420.0,0.00019178,2]
[363795545,1748874631938,-420.0,0.00019178,2]
[363795546,1748874631949,-436.61,0.00019178,2]
[363795547,1748874631959,-461.99,0.00019178,2]
[363795548,1748874631972,-420.0,0.00019178,2]
[363795549,1748874631982,-420.0,0.00019178,2]
[363795550,1748874631993,-420.0,0.00019178,2]
[363795551,1748874632003,-420.0,0.00019178,2]
[363795552,1748874632016,-420.0,0.00019178,2]
[363795553,1748874632026,-420.0,0.00019178,2]
[363795554,1748874632035,-420.0,0.00019178,2]
[363795555,1748874632046,-985.0,0.00019178,2]
[363795556,1748874632058,-420.0,0.00019178,2]
[363795557,1748874632074,-1778.76,0.00019178,2]
[363795558,1748874632084,-420.0,0.00019178,2]
[363795559,1748874632093,-431.13,0.00019178,2]
[363795560,1748874632103,-420.0,0.00019178,2]
[363795561,1748874632113,-520.7,0.00019178,2]
[363795562,1748874632122,-991.08,0.00019178,2]
[363795564,1748874632132,-469.25,0.00019178,2]
[363795565,1748874632142,-420.0,0.00019178,2]
[363795566,1748874632151,-1084.4,0.00019178,2]
[363795567,1748874632161,-923.64,0.00019178,2]
[363795568,1748874632169,-632.94,0.00019178,2]
[363795569,1748874632179,-686.7,0.00019178,2]
[363795570,1748874632189,-420.0,0.00019178,2]
[363795571,1748874632198,-420.0,0.00019178,2]
[363795572,1748874632208,-420.0,0.00019178,2]
[363795573,1748874632219,-1643.78,0.00019178,2]
[363795574,1748874632228,-420.0,0.00019178,2]
[363795575,1748874632238,-420.0,0.00019178,2]
[363795576,1748874632247,-420.0,0.00019178,2]
[363795577,1748874632257,-420.0,0.00019178,2]
[363795578,1748874632267,-420.0,0.00019178,2]
[363795579,1748874632277,-603.44,0.00019178,2]
[363795580,1748874632287,-420.0,0.00019178,2]
[363795581,1748874632296,-420.0,0.00019178,2]
[363795582,1748874632306,-420.0,0.00019178,2]
[363795583,1748874632316,-420.0,0.00019178,2]
[363795584,1748874632326,-524.37,0.00019178,2]
[363795585,1748874632336,-154.20386045,0.00019178,2]
[363795586,1748874632346,-578.14,0.00019178,2]
[363795587,1748874632356,-678.68,0.00019178,2]
[363795588,1748874632366,-341.61416151,0.00019178,2]
[363795589,1748874632379,-78.38583849,0.00019178,2]
[363795590,1748874632389,-483.35,0.00019178,2]
[363795591,1748874632398,-3425.26,0.00019178,2]
[363795592,1748874632408,-420.0,0.00019178,2]
[363795593,1748874632692,-420.0,0.00019178,2]
[363795594,1748874632703,-163.47756353,0.00019178,2]
[363795595,1748874632713,-420.0,0.00019178,2]
[363795596,1748874632724,-420.0,0.00019178,2]
[363795597,1748874632734,-420.0,0.00019178,2]
[363795598,1748874632744,-2015.96,0.00019178,2]
[363795599,1748874632753,-748.4,0.00019178,2]
[363795600,1748874632763,-420.0,0.00019178,2]
[363795601,1748874632773,-420.0,0.00019178,2]
[363795602,1748874632783,-420.0,0.00019178,2]
[363795603,1748874632792,-436.28,0.00019178,2]
[363795604,1748874632802,-420.0,0.00019178,2]
[363795605,1748874632820,-738.97,0.00019178,2]
[363795606,1748874632830,-420.0,0.00019178,2]
[363795607,1748874632840,-420.0,0.00019178,2]
[363795608,1748874632851,-420.0,0.00019178,2]
[363795609,1748874632860,-420.0,0.00019178,2]
[363795610,1748874632870,-420.0,0.00019178,2]
[363795611,1748874632879,-1343.79,0.00019178,2]
[363795612,1748874632888,-576.31552194,0.00019178,2]
[363795613,1748874632903,-328.86447806,0.00019178,2]
[363795614,1748874632914,-420.0,0.00019178,2]
[363795615,1748874632923,-420.0,0.00019178,2]
[363795616,1748874632934,-420.0,0.00019178,2]
[363795617,1748874632944,-420.0,0.00019178,2]
[363795618,1748874632953,-436.63,0.00019178,2]
[363795619,1748874632963,-100.12552194,0.00019178,2]
[363795620,1748874632976,-1069.15607727,0.00019178,2]
[363795621,1748874637576,-7592.90840079,0.00019178,2]
[363795622,1748874637586,-420.0,0.00019178,2]
[363795623,1748874637596,-2239.61,0.00019178,2]
[363795624,1748874637606,-454.51,0.00019178,2]
[363795625,1748874637616,-420.0,0.00019178,2]
[363795626,1748874637626,-1097.55,0.00019178,2]
[363795627,1748874637638,-420.0,0.00019178,2]
[363795628,1748874637648,-420.0,0.00019178,2]
[363795629,1748874637658,-223.62,0.00019178,2]
[363795630,1748874637668,-420.0,0.00019178,2]
[363795631,1748874637677,-420.0,0.00019178,2]
[363795632,1748874637687,-420.0,0.00019178,2]
[363795633,1748874637697,-420.0,0.00019178,2]
[363795634,1748874637707,-420.0,0.00019178,2]
[363795635,1748874637719,-681.94,0.00019178,2]
[363795636,1748874637729,-420.0,0.00019178,2]
[363795637,1748874637739,-480.65,0.00019178,2]
[363795639,1748874637749,-520.27,0.00019178,2]
[363795640,1748874637759,-159.35894493,0.00019178,2]
[363795641,1748874637768,-420.0,0.00019178,2]
[363795642,1748874637778,-420.0,0.00019178,2]
[363795643,1748874637787,-420.0,0.00019178,2]
[363795644,1748874637796,-442.74,0.00019178,2]
[363795645,1748874637806,-1000.0,0.00019201,2]
[363795646,1748874637816,-1000.0,0.00019215,2]
[363795647,1748874637825,-151.0,0.00019221,2]
[363795648,1748874637838,-2030.296672,0.00019221,2]
[363795649,1748874637847,-2105.41764886,0.00019276,2]
[363795650,1748874637857,-243.8,0.00019315,2]
[363795651,1748874637866,-420.0,0.00019315,2]
[363795652,1748874637875,-199.67,0.00019315,2]
[363795653,1748874637885,-420.0,0.00019315,2]
[363795654,1748874637894,-985.0,0.00019315,2]
[363795655,1748874637903,-420.0,0.00019315,2]
[363795656,1748874637913,-420.0,0.00019315,2]
[363795658,1748874637922,-431.13,0.00019315,2]
[363795660,1748874637931,-420.0,0.00019315,2]
[363795662,1748874637940,-520.7,0.00019315,2]
[363795664,1748874637950,-991.08,0.00019315,2]
[363795666,1748874637959,-469.25,0.00019315,2]
[363795667,1748874637969,-420.0,0.00019315,2]
[363795669,1748874637979,-1084.4,0.00019315,2]
[363795671,1748874637988,-923.64,0.00019315,2]
[363795673,1748874637998,-632.94,0.00019315,2]
[363795675,1748874638007,-686.7,0.00019315,2]
[363795677,1748874638021,-420.0,0.00019315,2]
[363795679,1748874638031,-1643.78,0.00019315,2]
[363795681,1748874638041,-420.0,0.00019315,2]
[363795683,1748874638051,-420.0,0.00019315,2]
[363795686,1748874638061,-420.0,0.00019315,2]
[363795688,1748874638071,-603.44,0.00019315,2]
[363795690,1748874638080,-420.0,0.00019315,2]
[363795692,1748874638089,-420.0,0.00019315,2]
[363795694,1748874638100,-420.0,0.00019315,2]
[363795696,1748874638110,-420.0,0.00019315,2]
[363795698,1748874638119,-524.37,0.00019315,2]
[363795700,1748874638129,-578.14,0.00019315,2]
[363795702,1748874638138,-678.68,0.00019315,2]
[363795703,1748874638147,-420.0,0.00019315,2]
[363795705,1748874638157,-483.35,0.00019315,2]
[363795707,1748874638166,-3425.26,0.00019315,2]
[363795709,1748874638176,-420.0,0.00019315,2]
[363795711,1748874638185,-420.0,0.00019315,2]
[363795713,1748874638195,-420.0,0.00019315,2]
[363795715,1748874638205,-420.0,0.00019315,2]
[363795717,1748874638214,-420.0,0.00019315,2]
[363795719,1748874638224,-2015.96,0.00019315,2]
[363795721,1748874638234,-748.4,0.00019315,2]
[363795723,1748874638243,-420.0,0.00019315,2]
[363795725,1748874638253,-420.0,0.00019315,2]
[363795728,1748874638263,-436.28,0.00019315,2]
[363795730,1748874638272,-420.0,0.00019315,2]
[363795733,1748874638282,-420.0,0.00019315,2]
[363795736,1748874638292,-738.97,0.00019315,2]
[363795739,1748874638302,-420.0,0.00019315,2]
[363795741,1748874638311,-420.0,0.00019315,2]
[363795744,1748874638320,-420.0,0.00019315,2]
[363795747,1748874638330,-420.0,0.00019315,2]
[363795749,1748874638339,-420.0,0.00019315,2]
[363795751,1748874638348,-1343.79,0.00019315,2]
[363795753,1748874638358,-905.18,0.00019315,2]
[363795755,1748874638367,-420.0,0.00019315,2]
[363795757,1748874638376,-420.0,0.00019315,2]
[363795759,1748874638386,-420.0,0.00019315,2]
[363795761,1748874638395,-436.63,0.00019315,2]
[363795763,1748874638403,-8762.19,0.00019315,2]
[363795765,1748874638413,-420.0,0.00019315,2]
[363795767,1748874638422,-2239.61,0.00019315,2]
[363795769,1748874638431,-454.51,0.00019315,2]
[363795771,1748874638441,-420.0,0.00019315,2]
[363795773,1748874638451,-1097.55,0.00019315,2]
[363795775,1748874638461,-420.0,0.00019315,2]
[363795777,1748874638472,-420.0,0.00019315,2]
[363795779,1748874638481,-420.0,0.00019315,2]
[363795781,1748874638491,-420.0,0.00019315,2]
[363795783,1748874638500,-206.71,0.00019315,2]
[363795785,1748874638509,-420.0,0.00019315,2]
[363795787,1748874638519,-420.0,0.00019315,2]
[363795789,1748874638529,-420.0,0.00019315,2]
[363795790,1748874638538,-681.94,0.00019315,2]
[363795792,1748874638548,-480.65,0.00019315,2]
[363795794,1748874638557,-520.27,0.00019315,2]
[363795796,1748874638567,-420.0,0.00019315,2]
[363795798,1748874638576,-420.0,0.00019315,2]
[363795800,1748874638586,-420.0,0.00019315,2]
[363795802,1748874638596,-442.74,0.00019315,2]
[363795804,1748874638605,-1000.0,0.00019326,2]
[363795806,1748874638615,-2183.31810187,0.00019331,2]
[363795808,1748874638625,-1518.64899325,0.00019352,2]
[363795810,1748874638635,-2264.10087164,0.00019386,2]
[363795812,1748874638645,-600.0,0.000194,7]
[363795814,1748874638658,-1518.64899319,0.00019413,2]
[363795816,1748874638667,-2347.87260389,0.00019441,2]
[363795818,1748874638677,-420.0,0.00019452,2]
[363795820,1748874638686,-420.0,0.00019452,2]
[363795822,1748874638696,-985.0,0.00019452,2]
[363795824,1748874638705,-420.0,0.00019452,2]
[363795826,1748874638715,-420.0,0.00019452,2]
[363795828,1748874638726,-431.13,0.00019452,2]
[363795829,1748874638735,-420.0,0.00019452,2]
[363795831,1748874638744,-520.7,0.00019452,2]
[363795833,1748874638754,-991.08,0.00019452,2]
[363795835,1748874638763,-469.25,0.00019452,2]
[363795837,1748874638773,-420.0,0.00019452,2]
[363795839,1748874638783,-1084.4,0.00019452,2]
[363795841,1748874638792,-923.64,0.00019452,2]
[363795843,1748874638802,-632.94,0.00019452,2]
[363795845,1748874638811,-686.7,0.00019452,2]
[363795847,1748874638821,-420.0,0.00019452,2]
[363795849,1748874638830,-1643.78,0.00019452,2]
[363795851,1748874638839,-420.0,0.00019452,2]
[363795853,1748874638849,-202.97584709,0.00019452,2]
[363795855,1748874638859,-420.0,0.00019452,2]
[363795857,1748874638869,-603.44,0.00019452,2]
[363795859,1748874638877,-420.0,0.00019452,2]
[363795861,1748874638885,-420.0,0.00019452,2]
[363795863,1748874638894,-272.56,0.00019452,2]
[363795865,1748874638902,-420.0,0.00019452,2]
[363795867,1748874638912,-524.37,0.00019452,2]
[363795869,1748874638921,-578.14,0.00019452,2]
[363795871,1748874638931,-678.68,0.00019452,2]
[363795873,1748874638940,-420.0,0.00019452,2]
[363795875,1748874638950,-483.35,0.00019452,2]
[363795877,1748874638962,-3425.26,0.00019452,2]
[363795879,1748874638976,-420.0,0.00019452,2]
[363795881,1748874638985,-507.14076722,0.00019452,2]
[363795883,1748874638995,-420.0,0.00019452,2]
[363795885,1748874639004,-420.0,0.00019452,2]
[363795887,1748874639016,-420.0,0.00019452,2]
[363795889,1748874639026,-2015.96,0.00019452,2]
[363795891,1748874639035,-748.4,0.00019452,2]
[363795893,1748874639045,-420.0,0.00019452,2]
[363795895,1748874639055,-420.0,0.00019452,2]
[363795897,1748874639064,-436.28,0.00019452,2]
[363795899,1748874639074,-420.0,0.00019452,2]
[363795900,1748874639083,-420.0,0.00019452,2]
[363795901,1748874639093,-738.97,0.00019452,2]
[363795902,1748874639103,-420.0,0.00019452,2]
[363795903,1748874639112,-344.81,0.00019452,2]
[363795904,1748874639121,-420.0,0.00019452,2]
[363795905,1748874639130,-420.0,0.00019452,2]
[363795906,1748874639139,-420.0,0.00019452,2]
[363795907,1748874639149,-1343.79,0.00019452,2]
[363795909,1748874639158,-905.18,0.00019452,2]
[363795911,1748874639168,-420.0,0.00019452,2]
[363795913,1748874639178,-420.0,0.00019452,2]